fUSD/lending_fUSD_20251003
["ID","MTS","AMOUNT","RATE_DAILY","PERIOD"]
[388919456,1759501843289,-500.0,0.00016973,2]
[388919457,1759501843299,-500.0,0.00016973,2]
[388919458,1759501843308,-500.0,0.00016973,2]
[388919459,1759501843318,-500.56835626,0.00016973,2]
[388919460,1759501843327,-500.0,0.00016973,2]
[388919461,1759501843336,-507.85907061,0.00016973,2]
[388919462,1759501843348,-500.0,0.00016973,2]
[388919463,1759501843357,-500.0,0.00016973,2]
[388919464,1759501843368,-500.0,0.00016973,2]
[388919465,1759501843377,-500.0,0.00016973,2]
[388919466,1759501843387,-500.0,0.00016973,2]
[388919467,1759501843396,-500.0,0.00016973,2]
[388919468,1759501843405,-500.0,0.00016973,2]
[388919469,1759501843415,-500.0,0.00016973,2]
[388919470,1759501843425,-500.0,0.00016973,2]
[388919471,1759501843434,-500.0,0.00016973,2]
[388919472,1759501843443,-552.86491092,0.00016973,2]
[388919473,1759501843452,-500.0,0.00016973,2]
[388919474,1759501843462,-500.0,0.00016973,2]
[388919475,1759501843471,-500.0,0.00016973,2]
[388919476,1759501843480,-150.0,0.00016986,2]
[388919477,1759501843490,-205.42937962,0.00016986,2]
[388919478,1759501843500,-150.0,0.00016986,2]
[388919479,1759501843509,-150.0,0.00016986,2]
[388919480,1759501843519,-150.00000001,0.00016986,2]
[388919481,1759501843528,-150.0,0.00016986,2]
[388919482,1759501843538,-150.0,0.00016986,2]
[388919483,1759501843548,-255.47545688,0.00016986,2]
[388919484,1759501843557,-150.0,0.00016986,2]
[388919485,1759501843567,-151.10528244,0.0001699,2]
[388919486,1759501843577,-4198.44,0.00016996,3]
[388919487,1759501843587,-4198.44,0.00016996,3]
[388919488,1759501843597,-4198.44,0.00016996,3]
[388919489,1759501843607,-4198.44,0.00016996,3]
[388919490,1759501843616,-4198.44,0.00016996,3]
[388919491,1759501843627,-4198.44,0.00016996,3]
[388919492,1759501843636,-4198.44,0.00016996,3]
[388919493,1759501843646,-4198.44,0.00016996,3]
[388919494,1759501843655,-4198.44,0.00016996,3]
[388919495,1759501843664,-4198.44,0.00016996,3]
[388919496,1759501843674,-4198.44,0.00016996,3]
[388919497,1759501843685,-4198.44,0.00016996,3]
[388919498,1759501843695,-4198.44,0.00016996,3]
[388919499,1759501843704,-4198.44,0.00016996,3]
[388919500,1759501843715,-4198.44,0.00016996,3]
[388919501,1759501843725,-4198.44,0.00016996,3]
[388919502,1759501843734,-4198.44,0.00016996,3]
[388919503,1759501843743,-4198.44,0.00016996,3]
[388919504,1759501843752,-4198.44,0.00016996,3]
[388919505,1759501843765,-4198.44,0.00016996,3]
[388919506,1759501843774,-4198.44,0.00016996,3]
[388919507,1759501843783,-4198.44,0.00016996,3]
[388919508,1759501843792,-4198.44,0.00016996,3]
[388919509,1759501843803,-4198.65612059,0.00016996,3]
[388919510,1759501843813,-1000.0,0.00016996,2]
[388919511,1759501843822,-1000.0,0.00016996,2]
[388919512,1759501843832,-1000.0,0.00016996,2]
[388919513,1759501843843,-1000.0,0.00016996,2]
[388919514,1759501843852,-1000.0,0.00016996,2]
[388919515,1759501843862,-1000.0,0.00016996,2]
[388919516,1759501843871,-1000.0,0.00016996,2]
[388919517,1759501843880,-1046.89665208,0.00016996,2]
[388919518,1759501843889,-150.0,0.00016998,2]
[388919519,1759501843898,-155.0,0.00016999,2]
[388919520,1759501843908,-151.0,0.00016999,2]
[388919521,1759501843917,-151.0,0.00016999,2]
[388919522,1759501843927,-243.066624,0.00016999,2]
[388919523,1759501843936,-151.0,0.00016999,2]
[388919524,1759501843945,-151.0,0.00016999,2]
[388919525,1759501843955,-151.0,0.00016999,2]
[388919526,1759501843964,-151.0,0.00016999,2]
[388919527,1759501843973,-151.0,0.00016999,2]
[388919528,1759501843982,-151.0,0.00016999,2]
[388919529,1759501843992,-156.820498,0.00016999,2]
[388919530,1759501844001,-161.516152,0.00016999,2]
[388919531,1759501844010,-151.0,0.00016999,2]
[388919532,1759501844020,-151.0,0.00016999,2]
[388919533,1759501844030,-151.0,0.00016999,2]
[388919534,1759501844039,-151.0,0.00016999,2]
[388919535,1759501844050,-151.0,0.00016999,2]
[388919536,1759501844059,-151.0,0.00016999,2]
[388919537,1759501844068,-151.0,0.00016999,2]
[388919538,1759501844078,-207.18349,0.00016999,2]
[388919539,1759501844088,-151.0,0.00016999,2]
[388919540,1759501844098,-151.0,0.00016999,2]
[388919541,1759501844107,-207.18349,0.00016999,2]
[388919542,1759501844117,-151.0,0.00016999,2]
[388919543,1759501844126,-208.320319,0.00016999,2]
[388919544,1759501844136,-151.0,0.00016999,2]
[388919545,1759501844145,-207.18349,0.00016999,2]
[388919546,1759501844155,-151.0,0.00016999,2]
[388919547,1759501844165,-151.0,0.00016999,2]
[388919548,1759501844174,-207.18349,0.00016999,2]
[388919549,1759501844184,-151.0,0.00016999,2]
[388919550,1759501844194,-151.0,0.00016999,2]
[388919551,1759501844204,-151.0,0.00016999,2]
[388919552,1759501844213,-151.0,0.00016999,2]
[388919553,1759501844223,-151.0,0.00016999,2]
[388919554,1759501844232,-10000.0,0.00016999,2]
[388919555,1759501844241,-151.0,0.00016999,2]
[388919556,1759501844251,-151.0,0.00016999,2]
[388919557,1759501844260,-151.0,0.00016999,2]
[388919558,1759501844269,-247.906028,0.00016999,2]
[388919559,1759501844279,-666.0,0.00016999,2]
[388919560,1759501844288,-151.0,0.00016999,2]
[388919561,1759501844298,-151.0,0.00016999,2]
[388919562,1759501844307,-151.0,0.00016999,2]
[388919563,1759501844317,-151.0,0.00016999,2]
[388919564,1759501844326,-151.0,0.00016999,2]
[388919565,1759501844336,-151.0,0.00016999,2]
[388919566,1759501844346,-151.0,0.00016999,2]
[388919567,1759501844356,-151.0,0.00016999,2]
[388919568,1759501844365,-151.0,0.00016999,2]
[388919569,1759501844374,-151.0,0.00016999,2]
[388919570,1759501844383,-151.0,0.00016999,2]
[388919571,1759501844394,-151.0,0.00016999,2]
[388919572,1759501844403,-151.0,0.00016999,2]
[388919573,1759501844412,-151.0,0.00016999,2]
[388919574,1759501844421,-151.0,0.00016999,2]
[388919575,1759501844431,-199.994436,0.00016999,2]
[388919576,1759501844440,-199.994436,0.00016999,2]
[388919577,1759501844449,-199.994436,0.00016999,2]
[388919578,1759501844459,-199.994436,0.00016999,2]
[388919579,1759501844468,-151.0,0.00016999,2]
[388919580,1759501844477,-445.080527,0.00016999,2]
[388919581,1759501844486,-445.080527,0.00016999,2]
[388919582,1759501844496,-445.080527,0.00016999,2]
[388919583,1759501844505,-151.0,0.00016999,2]
[388919584,1759501844514,-151.0,0.00016999,2]
[388919585,1759501844523,-445.080527,0.00016999,2]
[388919586,1759501844533,-151.0,0.00016999,2]
[388919587,1759501844542,-151.0,0.00016999,2]
[388919588,1759501844552,-151.0,0.00016999,2]
[388919589,1759501844562,-151.0,0.00016999,2]
[388919590,1759501844571,-151.0,0.00016999,2]
[388919591,1759501844580,-643.155811,0.00016999,2]
[388919592,1759501844589,-194.822631,0.00016999,2]
[388919593,1759501844600,-643.155811,0.00016999,2]
[388919594,1759501844609,-807.171973,0.00016999,2]
[388919595,1759501844619,-643.155811,0.00016999,2]
[388919596,1759501844628,-151.0,0.00016999,2]
[388919597,1759501844637,-807.171973,0.00016999,2]
[388919598,1759501844647,-643.155811,0.00016999,2]
[388919599,1759501844655,-151.0,0.00016999,2]
[388919600,1759501844665,-151.0,0.00016999,2]
[388919601,1759501844674,-151.0,0.00016999,2]
[388919602,1759501844684,-807.171973,0.00016999,2]
[388919603,1759501844692,-151.0,0.00016999,2]
[388919604,1759501844701,-807.171973,0.00016999,2]
[388919605,1759501844709,-151.0,0.00016999,2]
[388919606,1759501844718,-151.0,0.00016999,2]
[388919607,1759501844728,-151.0,0.00016999,2]
[388919608,1759501844737,-151.0,0.00016999,2]
[388919609,1759501844746,-151.0,0.00016999,2]
[388919610,1759501844755,-151.0,0.00016999,2]
[388919611,1759501844765,-151.0,0.00016999,2]
[388919612,1759501844774,-151.0,0.00016999,2]
[388919613,1759501844783,-151.0,0.00016999,2]
[388919614,1759501844792,-288.921319,0.00016999,2]
[388919615,1759501844800,-151.0,0.00016999,2]
[388919616,1759501844810,-151.0,0.00016999,2]
[388919617,1759501844819,-284.835029,0.00016999,2]
[388919618,1759501844828,-151.0,0.00016999,2]
[388919619,1759501844837,-284.835029,0.00016999,2]
[388919620,1759501844847,-151.0,0.00016999,2]
[388919621,1759501844858,-160.40939,0.00016999,2]
[388919622,1759501844867,-284.835029,0.00016999,2]
[388919623,1759501844877,-284.835029,0.00016999,2]
[388919624,1759501844886,-151.0,0.00016999,2]
[388919625,1759501844896,-151.0,0.00016999,2]
[388919626,1759501844906,-151.0,0.00016999,2]
[388919627,1759501844916,-151.0,0.00016999,2]
[388919628,1759501844925,-151.0,0.00016999,2]
[388919629,1759501844934,-151.0,0.00016999,2]
[388919630,1759501844944,-151.0,0.00016999,2]
[388919631,1759501844953,-151.0,0.00016999,2]
[388919632,1759501844963,-151.0,0.00016999,2]
[388919633,1759501844972,-204.02176,0.00016999,2]
[388919634,1759501844981,-151.0,0.00016999,2]
[388919635,1759501844990,-303.653549,0.00016999,2]
[388919636,1759501845002,-303.653549,0.00016999,2]
[388919637,1759501845011,-303.653549,0.00016999,2]
[388919638,1759501845029,-303.653549,0.00016999,2]
[388919639,1759501845041,-151.0,0.00016999,2]
[388919640,1759501845050,-213.228443,0.00016999,2]
[388919641,1759501845059,-151.0,0.00016999,2]
[388919642,1759501845069,-213.228443,0.00016999,2]
[388919643,1759501845078,-213.228443,0.00016999,2]
[388919644,1759501845087,-213.228443,0.00016999,2]
[388919645,1759501845099,-151.0,0.00016999,2]
[388919646,1759501845109,-151.0,0.00016999,2]
[388919647,1759501845118,-151.0,0.00016999,2]
[388919648,1759501845128,-151.0,0.00016999,2]
[388919649,1759501845137,-1224.892099,0.00016999,2]
[388919650,1759501845147,-300.0,0.00016999,2]
[388919651,1759501845157,-158.55,0.00016999,2]
[388919652,1759501845167,-1224.892099,0.00016999,2]
[388919653,1759501845178,-158.55,0.00016999,2]
[388919654,1759501845189,-666.0,0.00016999,2]
[388919655,1759501845200,-1224.892099,0.00016999,2]
[388919656,1759501845210,-158.55,0.00016999,2]
[388919657,1759501845220,-1224.892099,0.00016999,2]
[388919658,1759501845230,-158.55,0.00016999,2]
[388919659,1759501845240,-793.050365,0.00016999,2]
[388919660,1759501845250,-793.050365,0.00016999,2]
[388919661,1759501845261,-793.050365,0.00016999,2]
[388919662,1759501845271,-793.050365,0.00016999,2]
[388919663,1759501845281,-2607.962303,0.00016999,2]
[388919664,1759501845291,-565.743782,0.00016999,2]
[388919665,1759501845301,-299.100666,0.00016999,2]
[388919666,1759501845311,-2607.962303,0.00016999,2]
[388919667,1759501845321,-565.743782,0.00016999,2]
[388919668,1759501845331,-2607.962303,0.00016999,2]
[388919669,1759501845342,-151.0,0.00016999,2]
[388919670,1759501845352,-565.743782,0.00016999,2]
[388919672,1759501845362,-2607.962303,0.00016999,2]
[388919674,1759501845372,-565.743782,0.00016999,2]
[388919676,1759501845381,-151.0,0.00016999,2]
[388919677,1759501845391,-151.0,0.00016999,2]
[388919678,1759501845401,-151.0,0.00016999,2]
[388919679,1759501845411,-151.0,0.00016999,2]
[388919680,1759501845421,-151.0,0.00016999,2]
[388919681,1759501845431,-1140.476418,0.00016999,2]
[388919682,1759501845441,-151.0,0.00016999,2]
[388919683,1759501845451,-151.0,0.00016999,2]
[388919684,1759501845460,-1140.476418,0.00016999,2]
[388919685,1759501845470,-151.0,0.00016999,2]
[388919686,1759501845480,-151.0,0.00016999,2]
[388919687,1759501845490,-151.0,0.00016999,2]
[388919688,1759501845501,-1140.476418,0.00016999,2]
[388919689,1759501845511,-192.981624,0.00016999,2]
[388919690,1759501845522,-151.0,0.00016999,2]
[388919691,1759501845532,-1140.476418,0.00016999,2]
[388919692,1759501845542,-192.981624,0.00016999,2]
[388919693,1759501845552,-151.0,0.00016999,2]
[388919694,1759501845562,-180.048737,0.00016999,2]
[388919695,1759501845577,-151.0,0.00016999,2]
[388919696,1759501845588,-192.981624,0.00016999,2]
[388919697,1759501845599,-151.0,0.00016999,2]
[388919698,1759501845609,-192.981624,0.00016999,2]
[388919699,1759501845619,-151.0,0.00016999,2]
[388919700,1759501845629,-151.0,0.00016999,2]
[388919701,1759501845639,-153.984188,0.00016999,2]
[388919702,1759501845650,-151.0,0.00016999,2]
[388919703,1759501845660,-151.0,0.00016999,2]
[388919704,1759501845670,-151.0,0.00016999,2]
[388919705,1759501845681,-151.0,0.00016999,2]
[388919706,1759501845691,-160.521817,0.00016999,2]
[388919707,1759501845701,-329.497178,0.00016999,2]
[388919708,1759501845711,-151.0,0.00016999,2]
[388919709,1759501845721,-329.497178,0.00016999,2]
[388919710,1759501845731,-329.497178,0.00016999,2]
[388919711,1759501845740,-329.497178,0.00016999,2]
[388919712,1759501845751,-242.429329,0.00016999,2]
[388919713,1759501845766,-151.0,0.00016999,2]
[388919714,1759501845776,-151.0,0.00016999,2]
[388919715,1759501845786,-151.0,0.00016999,2]
[388919716,1759501845796,-151.0,0.00016999,2]
[388919717,1759501845807,-151.0,0.00016999,2]
[388919718,1759501845817,-155.556807,0.00016999,2]
[388919719,1759501845831,-151.0,0.00016999,2]
[388919720,1759501845842,-151.0,0.00016999,2]
[388919721,1759501845851,-151.0,0.00016999,2]
[388919722,1759501845862,-151.0,0.00016999,2]
[388919723,1759501845873,-151.0,0.00016999,2]
[388919724,1759501845883,-151.0,0.00016999,2]
[388919726,1759501845893,-151.0,0.00016999,2]
[388919728,1759501845903,-151.0,0.00016999,2]
[388919731,1759501845914,-151.0,0.00016999,2]
[388919732,1759501845924,-151.0,0.00016999,2]
[388919733,1759501845934,-179.345971,0.00016999,2]
[388919734,1759501845944,-199.115536,0.00016999,2]
[388919735,1759501845954,-1159.606881,0.00016999,2]
[388919736,1759501845965,-1159.606881,0.00016999,2]
[388919737,1759501845976,-151.0,0.00016999,2]
[388919738,1759501845986,-1159.606881,0.00016999,2]
[388919739,1759501845996,-1159.606881,0.00016999,2]
[388919740,1759501846006,-151.0,0.00016999,2]
[388919741,1759501846016,-151.0,0.00016999,2]
[388919742,1759501846026,-151.0,0.00016999,2]
[388919743,1759501846037,-151.0,0.00016999,2]
[388919744,1759501846047,-151.0,0.00016999,2]
[388919745,1759501846057,-151.0,0.00016999,2]
[388919746,1759501846067,-151.0,0.00016999,2]
[388919747,1759501846077,-151.0,0.00016999,2]
[388919748,1759501846088,-151.0,0.00016999,2]
[388919749,1759501846099,-151.0,0.00016999,2]
[388919750,1759501846110,-151.0,0.00016999,2]
[388919751,1759501846120,-37943.83421532,0.00017,2]
[388919752,1759501846141,-86143.48051773,0.00017,2]
[388919753,1759501846151,-15243.49194386,0.00017,2]
[388919754,1759501846164,-254.39513532,0.00017,2]
[388919755,1759501846176,-332.39073484,0.00017,2]
[388919756,1759501846188,-26580.80735647,0.00017,2]
[388919757,1759501846200,-3466.24,0.00017,2]
[388919758,1759501846253,-1079.41496,0.00017,2]
[388919759,1759501846266,-9377.69,0.00017,2]
[388919760,1759501846368,-254.7057457,0.00017,2]
[388919761,1759501846459,-1144.64329398,0.00017,2]
[388919762,1759501846471,-1205.65464631,0.00017,2]
[388919763,1759501846537,-1509.0,0.00017,2]
[388919764,1759501846549,-4817.616,0.00017,2]
[388919765,1759501846561,-27766.41716351,0.00017,2]
[388919766,1759501846573,-479.2,0.00017,2]
[388919767,1759501848113,-241.6241058,0.0001699,2]
[388919768,1759501848124,-191.225262,0.00016999,2]
[388919769,1759501848138,-1013.2506322,0.00017,2]
[388919770,1759501848151,-44617.3494579,0.00017,2]
[388919771,1759501848164,-4752.76029941,0.00017,2]
[388919772,1759501848177,-5764.11210548,0.00017,2]
[388919773,1759501848700,-3303.50381037,0.00017,2]
[388919774,1759501848713,-701.68074149,0.00017,2]
[388919775,1759501848725,-148118.03384522,0.00017,2]
[388919776,1759501848737,-370.28489529,0.00017,2]
[388919777,1759501853308,2752.52,0.00015916,2]
[388919778,1759501873798,300.0,0.000166,6]
[388919779,1759501919388,2751.0,0.00015916,2]
[388919780,1759502284288,164.04,0.00016125,2]
[388919787,1759502316091,500.0,0.00027397,120]
[388919788,1759502316304,500.0,0.00027671,120]
[388919789,1759502316480,500.0,0.00027945,120]
[388919790,1759502316655,593.0,0.00028219,120]
[388919791,1759502590263,150.0,0.0001606,2]
[388919792,1759502599025,1000.0,0.00016438,2]
[388919794,1759502714377,150.0,0.00015288,2]
[388919795,1759502715238,255.47545688,0.00015288,2]
[388919796,1759502719705,254.11289035,0.00015288,2]
[388919797,1759502727160,11044.45,0.0001606,2]
[388919798,1759502728603,150.0,0.00015288,2]
[388919799,1759502729198,150.0,0.00015288,2]
[388919800,1759502729658,150.41000677,0.00015288,2]
[388919804,1759502844400,600.0,0.000166,6]
[388919805,1759502944621,500.0,0.00030136,120]
[388919806,1759502995879,500.0,0.00030136,120]
[388919809,1759503025203,557.56,0.00016065,2]
[388919827,1759503031763,-1423.4272841,0.00016665,2]
[388919828,1759503031818,-1076.5727159,0.00016665,2]
[388919829,1759503031827,-300.0,0.00016665,2]
[388919830,1759503031836,-2110.49061246,0.00016665,2]
[388919831,1759503031845,-195.0,0.00016666,2]
[388919832,1759503031853,-1800.82163871,0.00016673,2]
[388919833,1759503031865,-416.69224758,0.00016673,2]
[388919834,1759503031876,-282.48611371,0.00016673,2]
[388919835,1759503031885,-172.15988579,0.000167,6]
[388919836,1759503031959,-1127.84011421,0.000167,6]
[388919837,1759503031969,-534.98439731,0.00016799,2]
[388919838,1759503031980,-400.0,0.00016799,2]
[388919839,1759503031991,-265.01560269,0.00016799,2]
[388919840,1759503032001,-51.03543731,0.000168,6]
[388919841,1759503032040,-1948.96456269,0.000168,6]
[388919842,1759503032050,-300.0,0.00016852,2]
[388919843,1759503032062,-665.40300835,0.00016853,2]
[388919844,1759503032079,-200.0,0.00016863,2]
[388919845,1759503032090,-200.0,0.00016864,2]
[388919846,1759503032100,-687.0,0.00016889,2]
[388919847,1759503032110,-550.0,0.00016889,2]
[388919848,1759503032120,-151.0,0.0001689,2]
[388919849,1759503032128,-599.60298507,0.0001689,2]
[388919850,1759503032138,-231.28369723,0.0001689,2]
[388919851,1759503032147,-318.82208156,0.0001689,2]
[388919852,1759503032157,-7965.41053268,0.0001689,2]
[388919853,1759503032166,-2600.0,0.000169,6]
[388919854,1759503032177,-218.35957258,0.000169,2]
[388919856,1759503032186,-167.84,0.000169,2]
[388919858,1759503032195,-412.7,0.000169,2]
[388919860,1759503032204,-418.85,0.000169,2]
[388919862,1759503032214,-412.63,0.000169,2]
[388919864,1759503032223,-807.29,0.000169,2]
[388919867,1759503032233,-1591.705,0.000169,2]
[388919870,1759503032243,-172.169,0.000169,2]
[388919872,1759503032252,-1614.58,0.000169,2]
[388919874,1759503032263,-2315.18064224,0.000169,2]
[388919876,1759503032272,-702.29020422,0.000169,2]
[388919879,1759503032282,-2203.6107,0.00016904,2]
[388919881,1759503032292,-1000.0,0.00016915,2]
[388919883,1759503032300,-1000.0,0.00016915,2]
[388919885,1759503032309,-1000.0,0.00016915,2]
[388919887,1759503032318,-1000.0,0.00016915,2]
[388919890,1759503032327,-1005.1969,0.00016915,2]
[388919892,1759503032337,-500.0,0.00016943,2]
[388919894,1759503032346,-528.91127809,0.00016943,2]
[388919895,1759503032355,-500.0,0.00016943,2]
[388919896,1759503032365,-500.0,0.00016943,2]
[388919897,1759503032375,-500.0,0.00016943,2]
[388919898,1759503032384,-500.0,0.00016943,2]
[388919899,1759503032393,-500.0,0.00016943,2]
[388919900,1759503032403,-500.0,0.00016943,2]
[388919901,1759503032413,-500.0,0.00016943,2]
[388919902,1759503032422,-500.0,0.00016943,2]
[388919903,1759503032431,-328.79591049,0.00016943,2]
[388919904,1759503032441,-8260.13072239,0.00016945,2]
[388919905,1759503032450,-500.0,0.00016973,2]
[388919906,1759503032460,-500.69197338,0.00016973,2]
[388919907,1759503032470,-500.0,0.00016973,2]
[388919908,1759503032480,-500.0,0.00016973,2]
[388919909,1759503032490,-500.0,0.00016973,2]
[388919910,1759503032499,-500.0,0.00016973,2]
[388919911,1759503032509,-500.0,0.00016973,2]
[388919912,1759503032519,-500.0,0.00016973,2]
[388919913,1759503032529,-500.0,0.00016973,2]
[388919914,1759503032539,-500.0,0.00016973,2]
[388919915,1759503032549,-500.0,0.00016973,2]
[388919916,1759503032559,-500.0,0.00016973,2]
[388919917,1759503032568,-500.0,0.00016973,2]
[388919918,1759503032895,-500.0,0.00016973,2]
[388919919,1759503032909,-501.87544709,0.00016973,2]
[388919920,1759503032919,-500.0,0.00016973,2]
[388919921,1759503032929,-500.0,0.00016973,2]
[388919922,1759503032938,-500.0,0.00016973,2]
[388919923,1759503032948,-500.0,0.00016973,2]
[388919924,1759503032958,-500.0,0.00016973,2]
[388919925,1759503032967,-163.56,0.0001699,2]
[388919926,1759503032977,-1000.0,0.0001699,2]
[388919927,1759503032986,-1000.0,0.0001699,2]
[388919928,1759503032996,-1000.0,0.0001699,2]
[388919929,1759503033006,-1000.0,0.0001699,2]
[388919930,1759503033015,-1000.0,0.0001699,2]
[388919931,1759503033025,-601.3376128,0.0001699,2]
[388919932,1759503033035,-1000.0,0.0001699,2]
[388919933,1759503033044,-151.0,0.0001699,2]
[388919934,1759503033054,-1000.0,0.0001699,2]
[388919935,1759503033070,-151.0,0.0001699,2]
[388919936,1759503033079,-1000.0,0.0001699,2]
[388919937,1759503033090,-151.0,0.0001699,2]
[388919938,1759503033100,-1000.0,0.0001699,2]
[388919939,1759503033112,-200.0,0.0001699,2]
[388919940,1759503033122,-151.0,0.0001699,2]
[388919941,1759503033131,-500.0,0.0001699,2]
[388919942,1759503033142,-1000.0,0.0001699,2]
[388919943,1759503033152,-151.0,0.0001699,2]
[388919944,1759503033161,-500.0,0.0001699,2]
[388919945,1759503033170,-151.61563466,0.0001699,2]
[388919946,1759503033180,-1000.0,0.0001699,2]
[388919947,1759503033190,-151.0,0.0001699,2]
[388919948,1759503033199,-500.0,0.0001699,2]
[388919949,1759503033208,-1000.0,0.0001699,2]
[388919950,1759503033218,-151.0,0.0001699,2]
[388919951,1759503033227,-500.0,0.0001699,2]
[388919952,1759503033237,-1000.0,0.0001699,2]
[388919953,1759503033248,-151.0,0.0001699,2]
[388919954,1759503033258,-500.0,0.0001699,2]
[388919955,1759503033268,-1000.0,0.0001699,2]
[388919956,1759503033278,-151.0,0.0001699,2]
[388919957,1759503033288,-500.0,0.0001699,2]
[388919958,1759503033299,-414.01305759,0.0001699,2]
[388919959,1759503033308,-151.0,0.0001699,2]
[388919960,1759503033318,-500.0,0.0001699,2]
[388919961,1759503033328,-200.0,0.0001699,2]
[388919962,1759503033338,-500.0,0.0001699,2]
[388919963,1759503033348,-151.0,0.0001699,2]
[388919964,1759503033358,-151.0,0.0001699,2]
[388919965,1759503033369,-500.0,0.0001699,2]
[388919966,1759503033380,-500.0,0.0001699,2]
[388919967,1759503033390,-200.0,0.0001699,2]
[388919968,1759503033400,-500.0,0.0001699,2]
[388919969,1759503033411,-151.0,0.0001699,2]
[388919970,1759503033420,-500.0,0.0001699,2]
[388919971,1759503033430,-500.0,0.0001699,2]
[388919972,1759503033440,-200.0,0.0001699,2]
[388919973,1759503033450,-500.0,0.0001699,2]
[388919974,1759503033459,-151.0,0.0001699,2]
[388919975,1759503033468,-500.0,0.0001699,2]
[388919976,1759503033478,-500.0,0.0001699,2]
[388919977,1759503033488,-200.0,0.0001699,2]
[388919978,1759503033498,-151.0,0.0001699,2]
[388919979,1759503033507,-500.0,0.0001699,2]
[388919980,1759503033516,-500.0,0.0001699,2]
[388919981,1759503033526,-200.0,0.0001699,2]
[388919982,1759503033536,-500.0,0.0001699,2]
[388919983,1759503033546,-151.0,0.0001699,2]
[388919984,1759503033555,-500.0,0.0001699,2]
[388919985,1759503033565,-500.0,0.0001699,2]
[388919986,1759503033574,-200.0,0.0001699,2]
[388919987,1759503033583,-500.0,0.0001699,2]
[388919988,1759503033593,-277.62000678,0.0001699,2]
[388919989,1759503033603,-500.0,0.0001699,2]
[388919990,1759503033614,-500.0,0.0001699,2]
[388919991,1759503033625,-500.0,0.0001699,2]
[388919992,1759503033636,-200.0,0.0001699,2]
[388919993,1759503033646,-500.0,0.0001699,2]
[388919994,1759503033657,-500.0,0.0001699,2]
[388919995,1759503033665,-200.0,0.0001699,2]
[388919996,1759503033674,-500.0,0.0001699,2]
[388919997,1759503033683,-500.0,0.0001699,2]
[388919998,1759503033692,-500.0,0.0001699,2]
[388919999,1759503033702,-200.0,0.0001699,2]
[388920000,1759503033712,-500.0,0.0001699,2]
[388920001,1759503033722,-500.0,0.0001699,2]
[388920002,1759503033732,-500.0,0.0001699,2]
[388920003,1759503033741,-200.0,0.0001699,2]
[388920004,1759503033751,-500.0,0.0001699,2]
[388920005,1759503033760,-200.0,0.0001699,2]
[388920006,1759503033771,-500.0,0.0001699,2]
[388920007,1759503033781,-200.0,0.0001699,2]
[388920008,1759503033791,-500.0,0.0001699,2]
[388920009,1759503033800,-200.0,0.0001699,2]
[388920010,1759503033810,-500.0,0.0001699,2]
[388920011,1759503033819,-200.0,0.0001699,2]
[388920012,1759503033828,-500.0,0.0001699,2]
[388920013,1759503033838,-500.0,0.0001699,2]